fUSD/lending_fUSD_20260608
["ID","MTS","AMOUNT","RATE_DAILY","PERIOD"]
[424466457,1780931931000,152.0,0.00027804,120]
[424466458,1780932041000,683.29,0.00027397,120]
[424466459,1780932044000,300.0,0.00030137,120]
[424466460,1780932054000,152.0,0.00010001,7]
[424466461,1780932055000,152.0,0.00027789,120]
[424466463,1780932284000,500.0,0.0003,120]
[424466464,1780932308000,500.0,0.0003,120]
[424466466,1780932540000,2000.0,0.00030136,120]
[424466566,1780932632000,-500.0,0.00013698,2]
[424466565,1780932632000,-500.0,0.00013698,2]
[424466553,1780932632000,-153.26,0.00013527,2]
[424466554,1780932632000,-500.0,0.00013698,2]
[424466559,1780932632000,-500.0,0.00013698,2]
[424466557,1780932632000,-500.0,0.00013698,2]
[424466560,1780932632000,-497.98493118,0.00013698,2]
[424466563,1780932632000,-500.0,0.00013698,2]
[424466556,1780932632000,-500.0,0.00013698,2]
[424466564,1780932632000,-161.86801858,0.00013698,2]
[424466561,1780932632000,-476.58425443,0.00013698,2]
[424466562,1780932632000,-500.0,0.00013698,2]
[424466567,1780932632000,-500.0,0.00013698,2]
[424466569,1780932632000,-500.0,0.00013698,2]
[424466570,1780932632000,-500.0,0.00013698,2]
[424466571,1780932632000,-500.0,0.00013698,2]
[424466558,1780932632000,-500.0,0.00013698,2]
[424466549,1780932632000,-24185.58,0.00013358,2]
[424466533,1780932632000,-1250.0,0.000116,2]
[424466551,1780932632000,-1852.42,0.00013442,2]
[424466531,1780932632000,-1440.12,0.000116,2]
[424466537,1780932632000,-311.86406538,0.000125,2]
[424466525,1780932632000,-150.0,0.00010309,2]
[424466535,1780932632000,-150.0,0.00012044,2]
[424466568,1780932632000,-500.0,0.00013698,2]
[424466529,1780932632000,-457.64,0.000116,2]
[424466539,1780932632000,-557.52,0.00013222,2]
[424466527,1780932632000,-152.98,0.00010628,2]
[424466542,1780932632000,-988.0,0.0001326,2]
[424466550,1780932632000,-5421.0,0.0001336,2]
[424466548,1780932632000,-150.0,0.00013357,2]
[424466547,1780932632000,-7060.94,0.00013316,2]
[424466552,1780932632000,-711.75,0.00013467,2]
[424466544,1780932632000,-524.8,0.00013316,2]
[424466545,1780932632000,-9090.68,0.00013316,2]
[424466541,1780932632000,-1000.0,0.00013253,2]
[424466543,1780932632000,-181.52,0.00013289,2]
[424466546,1780932632000,-558.92,0.00013316,2]
[424466572,1780932632000,-500.0,0.00013698,2]
[424466555,1780932632000,-500.0,0.00013698,2]
[424466574,1780932632000,-500.0,0.00013698,2]
[424466594,1780932632000,-756.04,0.00013698,2]
[424466602,1780932632000,-968.49,0.00013699,2]
[424466593,1780932632000,-756.04,0.00013698,2]
[424466598,1780932632000,-756.04,0.00013698,2]
[424466597,1780932632000,-756.04,0.00013698,2]
[424466596,1780932632000,-756.04,0.00013698,2]
[424466606,1780932632000,-150.0,0.00013759,2]
[424466603,1780932632000,-200.0,0.00013699,2]
[424466604,1780932632000,-7846.0,0.000137,2]
[424466605,1780932632000,-215.86427702,0.00013734,2]
[424466610,1780932632000,-150.0,0.00013759,2]
[424466607,1780932632000,-150.0,0.00013759,2]
[424466613,1780932632000,-150.0,0.00013759,2]
[424466609,1780932632000,-150.0,0.00013759,2]
[424466608,1780932632000,-150.0,0.00013759,2]
[424466612,1780932632000,-150.0,0.00013759,2]
[424466573,1780932632000,-500.0,0.00013698,2]
[424466601,1780932632000,-166.66,0.00013699,2]
[424466595,1780932632000,-756.04,0.00013698,2]
[424466611,1780932632000,-150.0,0.00013759,2]
[424466600,1780932632000,-500.0,0.00013698,2]
[424466577,1780932632000,-756.04,0.00013698,2]
[424466591,1780932632000,-756.04,0.00013698,2]
[424466576,1780932632000,-756.04,0.00013698,2]
[424466575,1780932632000,-500.0,0.00013698,2]
[424466579,1780932632000,-756.04,0.00013698,2]
[424466582,1780932632000,-756.04,0.00013698,2]
[424466580,1780932632000,-756.04,0.00013698,2]
[424466585,1780932632000,-756.04,0.00013698,2]
[424466583,1780932632000,-756.04,0.00013698,2]
[424466578,1780932632000,-756.04,0.00013698,2]
[424466584,1780932632000,-756.04,0.00013698,2]
[424466590,1780932632000,-756.04,0.00013698,2]
[424466588,1780932632000,-756.04,0.00013698,2]
[424466599,1780932632000,-756.1451521,0.00013698,2]
[424466587,1780932632000,-756.04,0.00013698,2]
[424466589,1780932632000,-756.04,0.00013698,2]
[424466586,1780932632000,-756.04,0.00013698,2]
[424466581,1780932632000,-756.04,0.00013698,2]
[424466592,1780932632000,-756.04,0.00013698,2]
[424466658,1780932633000,-150.0,0.00014378,2]
[424466662,1780932633000,-182.62655,0.00014384,2]
[424466663,1780932633000,-243.586746,0.00014398,2]
[424466655,1780932633000,-150.0,0.00014347,2]
[424466654,1780932633000,-150.0,0.00014341,2]
[424466650,1780932633000,-150.0,0.00014268,2]
[424466653,1780932633000,-150.0,0.00014332,2]
[424466644,1780932633000,-150.0,0.00014159,2]
[424466647,1780932633000,-150.0,0.00014229,2]
[424466648,1780932633000,-150.0,0.00014232,2]
[424466665,1780932633000,-2500.0,0.000144,5]
[424466649,1780932633000,-500.0,0.00014246,2]
[424466671,1780932633000,-150.0,0.00014438,2]
[424466657,1780932633000,-150.0,0.0001437,2]
[424466669,1780932633000,-360.510289,0.00014431,2]
[424466661,1780932633000,-419.309303,0.00014384,2]
[424466664,1780932633000,-5601.3605991,0.00014399,2]
[424466660,1780932633000,-289.654651,0.00014384,2]
[424466659,1780932633000,-160.0,0.00014384,2]
[424466667,1780932633000,-160.0,0.00014431,2]
[424466666,1780932633000,-150.0,0.00014414,2]
[424466677,1780932633000,-218.50708358,0.00014452,2]
[424466668,1780932633000,-260.255144,0.00014431,2]
[424466679,1780932633000,-500.0,0.00014452,2]
[424466678,1780932633000,-150.0,0.00014452,2]
[424466672,1780932633000,-150.0,0.0001445,2]
[424466673,1780932633000,-500.0,0.00014452,2]
[424466670,1780932633000,-262.964682,0.00014431,2]
[424466645,1780932633000,-166.66,0.00014187,2]
[424466656,1780932633000,-166.66,0.0001435,2]
[424466646,1780932633000,-150.0,0.00014196,2]
[424466625,1780932633000,-150.0,0.00013929,2]
[424466642,1780932633000,-150.0,0.00014123,2]
[424466614,1780932633000,-150.0,0.00013759,2]
[424466615,1780932633000,-150.0,0.00013759,2]
[424466616,1780932633000,-203.80794025,0.00013759,2]
[424466617,1780932633000,-150.0,0.00013759,2]
[424466620,1780932633000,-166.66,0.00013861,2]
[424466619,1780932633000,-150.0,0.00013832,2]
[424466618,1780932633000,-150.0,0.00013795,2]
[424466621,1780932633000,-150.0,0.00013868,2]
[424466622,1780932633000,-150.0,0.00013877,2]
[424466626,1780932633000,-4785.0,0.0001393,2]
[424466624,1780932633000,-24374.1,0.00013928,2]
[424466623,1780932633000,-150.0,0.00013905,2]
[424466635,1780932633000,-166.66,0.00014024,2]
[424466627,1780932633000,-150.0,0.00013941,2]
[424466630,1780932633000,-2576.29,0.00013974,2]
[424466634,1780932633000,-150.0,0.00014014,2]
[424466638,1780932633000,-4940.46,0.00014077,2]
[424466631,1780932633000,-150.0,0.00013977,2]
[424466628,1780932633000,-150.0,0.0001395,2]
[424466633,1780932633000,-150.0,0.00013994,2]
[424466629,1780932633000,-500.0,0.00013972,2]
[424466637,1780932633000,-150.0,0.00014065,2]
[424466632,1780932633000,-634.77,0.00013989,2]
[424466636,1780932633000,-150.0,0.0001405,2]
[424466639,1780932633000,-150.0,0.00014086,2]
[424466641,1780932633000,-150.0,0.00014112,2]
[424466640,1780932633000,-150.0,0.00014099,2]
[424466652,1780932633000,-150.0,0.00014305,2]
[424466651,1780932633000,-150.0,0.00014268,2]
[424466643,1780932633000,-150.0,0.00014141,2]
[424466675,1780932633000,-500.0,0.00014452,2]
[424466693,1780932633000,-906.0,0.00014452,2]
[424466674,1780932633000,-505.49510151,0.00014452,2]
[424466712,1780932633000,-255.0,0.00014466,2]
[424466716,1780932633000,-1743.07,0.00014497,2]
[424466717,1780932633000,-351.2,0.00014497,2]
[424466715,1780932633000,-1424.53,0.00014497,2]
[424466713,1780932633000,-150.0,0.00014487,2]
[424466714,1780932633000,-169.613665,0.00014495,2]
[424466721,1780932633000,-5601.3605991,0.0001451,2]
[424466722,1780932633000,-166.66,0.00014513,2]
[424466730,1780932633000,-5601.3605991,0.00014566,2]
[424466724,1780932633000,-150.0,0.00014523,2]
[424466720,1780932633000,-152.0,0.00014502,2]
[424466723,1780932633000,-500.0,0.0001452,2]
[424466727,1780932633000,-150.0,0.00014523,2]
[424466729,1780932633000,-150.0,0.0001456,2]
[424466725,1780932633000,-150.0,0.00014523,2]
[424466726,1780932633000,-150.0,0.00014523,2]
[424466728,1780932633000,-235.417037,0.00014542,2]
[424466733,1780932633000,-7700.0,0.000146,5]
[424466732,1780932633000,-150.0,0.00014596,2]
[424466734,1780932633000,-150.0,0.00014608,2]
[424466735,1780932633000,-5601.3605991,0.00014622,2]
[424466738,1780932633000,-150.0,0.00014669,2]
[424466736,1780932633000,-150.0,0.00014632,2]
[424466737,1780932633000,-10000.0,0.00014655,2]
[424466740,1780932633000,-5601.3605991,0.00014677,2]
[424466741,1780932633000,-500.0,0.00014681,2]
[424466739,1780932633000,-150.0,0.00014676,2]
[424466742,1780932633000,-1420.1079,0.00014692,2]
[424466676,1780932633000,-501.87117652,0.00014452,2]
[424466711,1780932633000,-150.0,0.00014464,2]
[424466710,1780932633000,-5601.3605991,0.00014455,2]
[424466731,1780932633000,-150.0,0.00014582,2]
[424466718,1780932633000,-167.32,0.00014499,2]
[424466680,1780932633000,-150.0,0.00014452,2]
[424466682,1780932633000,-500.0,0.00014452,2]
[424466683,1780932633000,-500.0,0.00014452,2]
[424466684,1780932633000,-500.0,0.00014452,2]
[424466681,1780932633000,-500.0,0.00014452,2]
[424466719,1780932633000,-5100.0,0.000145,5]
[424466685,1780932633000,-179.0070577,0.00014452,2]
[424466686,1780932633000,-906.0,0.00014452,2]
[424466690,1780932633000,-906.0,0.00014452,2]
[424466687,1780932633000,-906.0,0.00014452,2]
[424466692,1780932633000,-906.0,0.00014452,2]
[424466688,1780932633000,-906.0,0.00014452,2]
[424466689,1780932633000,-906.0,0.00014452,2]
[424466706,1780932633000,-906.0,0.00014452,2]
[424466702,1780932633000,-906.0,0.00014452,2]
[424466691,1780932633000,-906.0,0.00014452,2]
[424466695,1780932633000,-906.0,0.00014452,2]
[424466705,1780932633000,-906.0,0.00014452,2]
[424466709,1780932633000,-918.0,0.00014452,2]
[424466707,1780932633000,-906.0,0.00014452,2]
[424466697,1780932633000,-906.0,0.00014452,2]
[424466701,1780932633000,-906.0,0.00014452,2]
[424466696,1780932633000,-906.0,0.00014452,2]
[424466708,1780932633000,-906.0,0.00014452,2]
[424466704,1780932633000,-906.0,0.00014452,2]
[424466700,1780932633000,-906.0,0.00014452,2]
[424466698,1780932633000,-906.0,0.00014452,2]
[424466694,1780932633000,-906.0,0.00014452,2]
[424466699,1780932633000,-906.0,0.00014452,2]
[424466703,1780932633000,-906.0,0.00014452,2]
[424466763,1780932634000,-10000.0,0.00014773,2]
[424466746,1780932634000,-261.7360988,0.00014694,2]
[424466760,1780932634000,-172.99202504,0.00014754,2]
[424466755,1780932634000,-581.08566082,0.00014725,2]
[424466754,1780932634000,-500.0,0.00014725,2]
[424466751,1780932634000,-150.0,0.00014714,2]
[424466753,1780932634000,-500.0,0.00014725,2]
[424466752,1780932634000,-500.0,0.00014725,2]
[424466748,1780932634000,-150.0,0.000147,2]
[424466743,1780932634000,-10726.6001,0.00014692,2]
[424466749,1780932634000,-10300.0,0.000147,5]
[424466758,1780932634000,-168.63106939,0.00014744,2]
[424466759,1780932634000,-350.0,0.00014745,2]
[424466757,1780932634000,-150.0,0.00014742,2]
[424466747,1780932634000,-555.66618929,0.00014699,2]
[424466745,1780932634000,-168.63106942,0.00014692,2]
[424466744,1780932634000,-2500.0,0.00014692,2]
[424466761,1780932634000,-161.49601252,0.00014754,2]
[424466750,1780932634000,-150.0,0.00014705,2]
[424466767,1780932634000,-5601.3605991,0.00014789,2]
[424466756,1780932634000,-5601.3605991,0.00014733,2]
[424466770,1780932634000,-500.0,0.00014791,2]
[424466784,1780932634000,-308.3712,0.00014792,2]
[424466783,1780932634000,-7710.24030467,0.00014792,2]
[424466779,1780932634000,-500.0,0.00014791,2]
[424466780,1780932634000,-500.0,0.00014791,2]
[424466776,1780932634000,-500.0,0.00014791,2]
[424466777,1780932634000,-500.0,0.00014791,2]
[424466774,1780932634000,-500.0,0.00014791,2]
[424466775,1780932634000,-500.0,0.00014791,2]
[424466778,1780932634000,-500.0,0.00014791,2]
[424466773,1780932634000,-500.0,0.00014791,2]
[424466782,1780932634000,-291801.18224207,0.00014792,2]
[424466781,1780932634000,-500.0,0.00014791,2]
[424466772,1780932634000,-500.0,0.00014791,2]
[424466765,1780932634000,-150.0,0.00014778,2]
[424466769,1780932634000,-2000.0,0.00014791,2]
[424466762,1780932634000,-150.0,0.00014754,2]
[424466764,1780932634000,-150.0,0.00014778,2]
[424466768,1780932634000,-500.0,0.0001479,2]
[424466766,1780932634000,-292.14410919,0.00014782,2]
[424466771,1780932634000,-500.0,0.00014791,2]
[424466795,1780932637000,-168.63106939,0.00014796,2]
[424466794,1780932637000,-500.0,0.00014794,2]
[424466793,1780932637000,-1200180.20625326,0.00014792,2]
[424466798,1780932637000,-500.0,0.00014799,2]
[424466796,1780932637000,-7020.2185,0.00014799,2]
[424466799,1780932637000,-236.72015914,0.00014799,2]
[424466797,1780932637000,-500.0,0.00014799,2]
[424466792,1780932637000,-190.891997,0.00014456,2]
[424466842,1780932638000,-523.63262683,0.00014799,2]
[424466841,1780932638000,-523.63262683,0.00014799,2]
[424466839,1780932638000,-523.63262683,0.00014799,2]
[424466837,1780932638000,-523.63262683,0.00014799,2]
[424466835,1780932638000,-523.63262683,0.00014799,2]
[424466834,1780932638000,-523.63262683,0.00014799,2]
[424466845,1780932638000,-523.63262683,0.00014799,2]
[424466833,1780932638000,-523.63262683,0.00014799,2]
[424466843,1780932638000,-523.63262683,0.00014799,2]
[424466844,1780932638000,-523.63262683,0.00014799,2]
[424466838,1780932638000,-523.63262683,0.00014799,2]
[424466836,1780932638000,-523.63262683,0.00014799,2]
[424466840,1780932638000,-523.63262683,0.00014799,2]
[424466861,1780932638000,-532.48666742,0.00014799,2]
[424466848,1780932638000,-523.63262683,0.00014799,2]
[424466846,1780932638000,-523.63262683,0.00014799,2]
[424466850,1780932638000,-523.63262683,0.00014799,2]
[424466849,1780932638000,-523.63262683,0.00014799,2]
[424466851,1780932638000,-523.63262683,0.00014799,2]
[424466852,1780932638000,-523.63262683,0.00014799,2]
[424466854,1780932638000,-523.63262683,0.00014799,2]
[424466855,1780932638000,-523.63262683,0.00014799,2]
[424466853,1780932638000,-523.63262683,0.00014799,2]
[424466856,1780932638000,-523.63262683,0.00014799,2]
[424466858,1780932638000,-498.18096955,0.00014799,2]
[424466859,1780932638000,-532.48666742,0.00014799,2]
[424466826,1780932638000,-523.63262683,0.00014799,2]
[424466865,1780932638000,-532.48666742,0.00014799,2]
[424466847,1780932638000,-523.63262683,0.00014799,2]
[424466823,1780932638000,-523.63262683,0.00014799,2]
[424466818,1780932638000,-523.63262683,0.00014799,2]
[424466821,1780932638000,-523.63262683,0.00014799,2]
[424466872,1780932638000,-532.48666742,0.00014799,2]
[424466800,1780932638000,-500.0,0.00014799,2]
[424466802,1780932638000,-500.0,0.00014799,2]
[424466801,1780932638000,-500.0,0.00014799,2]
[424466804,1780932638000,-500.0,0.00014799,2]
[424466803,1780932638000,-500.0,0.00014799,2]
[424466805,1780932638000,-500.0,0.00014799,2]
[424466807,1780932638000,-523.63262683,0.00014799,2]
[424466806,1780932638000,-523.63262683,0.00014799,2]
[424466808,1780932638000,-523.63262683,0.00014799,2]
[424466809,1780932638000,-523.63262683,0.00014799,2]
[424466810,1780932638000,-523.63262683,0.00014799,2]
[424466811,1780932638000,-523.63262683,0.00014799,2]
[424466812,1780932638000,-523.63262683,0.00014799,2]
[424466814,1780932638000,-523.63262683,0.00014799,2]
[424466813,1780932638000,-523.63262683,0.00014799,2]
[424466815,1780932638000,-523.63262683,0.00014799,2]
[424466819,1780932638000,-523.63262683,0.00014799,2]
[424466816,1780932638000,-523.63262683,0.00014799,2]
[424466817,1780932638000,-523.63262683,0.00014799,2]
[424466822,1780932638000,-523.63262683,0.00014799,2]
[424466824,1780932638000,-523.63262683,0.00014799,2]
[424466820,1780932638000,-523.63262683,0.00014799,2]
[424466827,1780932638000,-523.63262683,0.00014799,2]
[424466830,1780932638000,-523.63262683,0.00014799,2]
[424466825,1780932638000,-523.63262683,0.00014799,2]
[424466831,1780932638000,-523.63262683,0.00014799,2]
[424466828,1780932638000,-523.63262683,0.00014799,2]
[424466832,1780932638000,-523.63262683,0.00014799,2]
[424466829,1780932638000,-523.63262683,0.00014799,2]
[424466869,1780932638000,-532.48666742,0.00014799,2]
[424466905,1780932638000,-500.0,0.00014799,2]
[424466870,1780932638000,-532.48666742,0.00014799,2]
[424466910,1780932638000,-967.68501888,0.000148,2]
[424466917,1780932638000,-169.64399403,0.00014826,2]
[424466923,1780932638000,-150.0,0.00014851,2]
[424466922,1780932638000,-282.464,0.0001485,2]
[424466919,1780932638000,-10000.0,0.00014845,2]
[424466924,1780932638000,-282.46399,0.0001486,2]
[424466926,1780932638000,-3410.969,0.00014867,2]
[424466920,1780932638000,-168.63106939,0.00014848,2]
[424466925,1780932638000,-181.921,0.00014867,2]
[424466918,1780932638000,-5601.3605991,0.00014844,2]
[424466927,1780932638000,-200.0,0.0001488,2]
[424466921,1780932638000,-282.46399,0.0001485,2]
[424466928,1780932638000,-150.0,0.00014887,2]
[424466929,1780932638000,-151.0,0.00014893,2]
[424466937,1780932638000,-225.62301577,0.00014899,2]
[424466936,1780932638000,-500.0,0.00014899,2]
[424466932,1780932638000,-500.0,0.00014899,2]
[424466934,1780932638000,-500.0,0.00014899,2]
[424466938,1780932638000,-238.00578641,0.00014899,2]
[424466931,1780932638000,-500.0,0.00014898,2]
[424466939,1780932638000,-500.0,0.00014899,2]
[424466930,1780932638000,-151.0,0.00014893,2]
[424466933,1780932638000,-500.0,0.00014899,2]
[424466941,1780932638000,-500.0,0.00014899,2]
[424466935,1780932638000,-500.0,0.00014899,2]
[424466940,1780932638000,-500.0,0.00014899,2]
[424466863,1780932638000,-532.48666742,0.00014799,2]
[424466944,1780932638000,-500.0,0.00014899,2]
[424466943,1780932638000,-500.0,0.00014899,2]
[424466913,1780932638000,-12800.0,0.000148,5]
[424466912,1780932638000,-514.32953708,0.000148,2]
[424466942,1780932638000,-419.48220959,0.00014899,2]
[424466906,1780932638000,-500.0,0.00014799,2]
[424466911,1780932638000,-917.55074112,0.000148,2]
[424466876,1780932638000,-532.48666742,0.00014799,2]
[424466878,1780932638000,-532.48666742,0.00014799,2]
[424466879,1780932638000,-532.48666742,0.00014799,2]
[424466883,1780932638000,-532.48666742,0.00014799,2]
[424466881,1780932638000,-532.48666742,0.00014799,2]
[424466885,1780932638000,-532.48666742,0.00014799,2]
[424466894,1780932638000,-532.48666742,0.00014799,2]
[424466896,1780932638000,-532.48666742,0.00014799,2]
[424466897,1780932638000,-532.48666742,0.00014799,2]
[424466900,1780932638000,-532.48666742,0.00014799,2]
[424466898,1780932638000,-532.48666742,0.00014799,2]
[424466887,1780932638000,-532.48666742,0.00014799,2]
[424466892,1780932638000,-532.48666742,0.00014799,2]
[424466874,1780932638000,-532.48666742,0.00014799,2]
[424466901,1780932638000,-532.48666742,0.00014799,2]
[424466890,1780932638000,-532.48666742,0.00014799,2]
[424466908,1780932638000,-500.0,0.00014799,2]
[424466907,1780932638000,-500.0,0.00014799,2]
[424466909,1780932638000,-10000.0,0.000148,2]
[424466867,1780932638000,-532.48666742,0.00014799,2]
[424466915,1780932638000,-150.0,0.00014817,2]
[424466914,1780932638000,-150.0,0.00014814,2]
[424466904,1780932638000,-500.0,0.00014799,2]
[424466903,1780932638000,-294.54688607,0.00014799,2]
[424466902,1780932638000,-500.0,0.00014799,2]
[424466899,1780932638000,-532.48666742,0.00014799,2]
[424466889,1780932638000,-532.48666742,0.00014799,2]
[424466916,1780932638000,-169.64399403,0.00014826,2]
[424466956,1780932639000,-500.0,0.00014899,2]
[424466958,1780932639000,-500.0,0.00014899,2]
[424466960,1780932639000,-500.0,0.00014899,2]
[424466962,1780932639000,-322.71289429,0.00014899,2]
[424466970,1780932639000,-503.93302661,0.00014899,2]
[424466957,1780932639000,-206.103436,0.00014899,2]
[424466966,1780932639000,-500.0,0.00014899,2]
[424466967,1780932639000,-500.0,0.00014899,2]
[424466968,1780932639000,-500.0,0.00014899,2]
[424466959,1780932639000,-500.0,0.00014899,2]
[424466961,1780932639000,-481.07233476,0.00014899,2]
[424466955,1780932639000,-500.0,0.00014899,2]
[424466951,1780932639000,-500.0,0.00014899,2]
[424466965,1780932639000,-500.0,0.00014899,2]
[424466954,1780932639000,-500.0,0.00014899,2]
[424466963,1780932639000,-500.65266857,0.00014899,2]
[424466950,1780932639000,-500.0,0.00014899,2]
[424466945,1780932639000,-500.0,0.00014899,2]
[424466946,1780932639000,-500.0,0.00014899,2]
[424466953,1780932639000,-500.0,0.00014899,2]
[424466949,1780932639000,-500.0,0.00014899,2]
[424466948,1780932639000,-340.83209307,0.00014899,2]
[424466952,1780932639000,-500.0,0.00014899,2]
[424466947,1780932639000,-500.0,0.00014899,2]
[424466974,1780932639000,-500.0,0.00014899,2]
[424466964,1780932639000,-500.0,0.00014899,2]
[424466977,1780932639000,-500.0,0.00014899,2]
[424466984,1780932639000,-500.0,0.00014899,2]
[424466975,1780932639000,-500.0,0.00014899,2]
[424467000,1780932639000,-763792.62231835,0.000149,2]
[424466997,1780932639000,-500.0,0.00014899,2]
[424466996,1780932639000,-500.0,0.00014899,2]
[424466998,1780932639000,-500.0,0.00014899,2]
[424466999,1780932639000,-186.90873707,0.00014899,2]
[424466994,1780932639000,-500.0,0.00014899,2]
[424466995,1780932639000,-500.0,0.00014899,2]
[424466991,1780932639000,-500.0,0.00014899,2]
[424466993,1780932639000,-500.0,0.00014899,2]
[424466992,1780932639000,-500.0,0.00014899,2]
[424466985,1780932639000,-500.0,0.00014899,2]
[424466972,1780932639000,-500.0,0.00014899,2]
[424466987,1780932639000,-500.0,0.00014899,2]
[424466986,1780932639000,-500.0,0.00014899,2]
[424466982,1780932639000,-500.0,0.00014899,2]
[424466981,1780932639000,-500.0,0.00014899,2]
[424466983,1780932639000,-500.0,0.00014899,2]
[424466980,1780932639000,-6521.0,0.00014899,2]
[424466978,1780932639000,-514.86964047,0.00014899,2]
[424466990,1780932639000,-500.0,0.00014899,2]
[424466989,1780932639000,-500.0,0.00014899,2]
[424466979,1780932639000,-150.0,0.00014899,2]
[424466976,1780932639000,-500.0,0.00014899,2]
[424466973,1780932639000,-500.0,0.00014899,2]
[424466969,1780932639000,-500.0,0.00014899,2]
[424466971,1780932639000,-510.29608046,0.00014899,2]
[424466988,1780932639000,-457.12873569,0.00014899,2]
[424467003,1780932640000,-3685.87841747,0.000149,2]
[424467004,1780932640000,-680.33,0.000149,2]
[424467006,1780932640000,-14892.28093059,0.000149,2]
[424467007,1780932640000,-4390.94608498,0.000149,2]
[424467005,1780932640000,-2767.42,0.000149,2]
[424467009,1780932640000,-658.15194705,0.000149,2]
[424467008,1780932640000,-403.913064,0.000149,2]
[424467017,1780932641000,-55131.0633652,0.000149,2]
[424467016,1780932641000,-828491.82550696,0.000149,2]
[424467015,1780932641000,-4225.30587682,0.000149,2]
[424467014,1780932641000,-687.574446,0.00014694,2]
[424467013,1780932641000,-2500.0,0.00014638,2]
[424467036,1780932645000,-1348.04508233,0.000149,2]
[424467037,1780932645000,-161.05,0.00013996,2]
[424467035,1780932645000,-6933.30155673,0.000149,2]
[424467039,1780932645000,-476.01340121,0.00014799,2]
[424467038,1780932645000,-634.26923891,0.000149,2]
[424467040,1780932645000,-74.70444567,0.00014799,2]
[424467041,1780932645000,-380356.40359317,0.000149,2]
[424467053,1780932646000,-550.71784688,0.00014799,2]
[424467061,1780932646000,-5601.3605991,0.000149,2]
[424467062,1780932646000,-193.35541125,0.000149,2]
[424467063,1780932646000,-150.0,0.00014905,2]
[424467060,1780932646000,-168.63106939,0.000149,2]
[424467064,1780932646000,-169.64399403,0.00014912,2]
[424467057,1780932646000,-240832.37491408,0.000149,2]
[424467054,1780932646000,-550.71784688,0.00014799,2]
[424467055,1780932646000,-550.71784688,0.00014799,2]
[424467059,1780932646000,-2500.0,0.000149,5]
[424467047,1780932646000,-550.71784688,0.00014799,2]
[424467058,1780932646000,-2000.0,0.000149,2]
[424467052,1780932646000,-550.71784688,0.00014799,2]
[424467049,1780932646000,-550.71784688,0.00014799,2]
[424467048,1780932646000,-550.71784688,0.00014799,2]
[424467050,1780932646000,-550.71784688,0.00014799,2]
[424467071,1780932646000,-150.0,0.00014948,2]
[424467046,1780932646000,-550.71784688,0.00014799,2]
[424467045,1780932646000,-550.71784688,0.00014799,2]
[424467044,1780932646000,-687.57444599,0.00014797,2]
[424467056,1780932646000,-550.71784688,0.00014799,2]
[424467067,1780932646000,-169.64399403,0.00014925,2]
[424467051,1780932646000,-550.71784688,0.00014799,2]
[424467066,1780932646000,-169.64399403,0.00014925,2]
[424467089,1780932646000,-306.35509443,0.00014987,2]
[424467088,1780932646000,-58138.53593847,0.00014987,2]
[424467077,1780932646000,-350.0,0.00014983,2]
[424467084,1780932646000,-500.0,0.00014986,2]
[424467082,1780932646000,-475.17501502,0.00014986,2]
[424467079,1780932646000,-240.22,0.00014985,2]